[Event "94th Tradewise Hastings Congress"]
[Site "Hastings"]
[Date "2019.01.04"]
[Round "8"]
[White "Graham, Cassie M"]
[Black "Sugden, John N"]
[Result "1/2-1/2"]
[ECO "B26"]
[WhiteElo "1889"]
[BlackElo "2072"]
[Annotator "NA"]
[PlyCount "64"]
[EventDate "2018.12.28"]
[EventType "swiss"]
[EventCountry "ENG"]
[SourceTitle "playchess.com"]
[Source "ChessBase"]
[SourceQuality "1"]
[TimeControl "40/6000+30:3000+30"]

1. e4 {[%emt 0:00:00]} c5 {[%emt 0:00:01]} 2. Nc3 {[%emt 0:00:00]} Nc6 {[%emt 0:00:36]} 3. g3 {[%emt 0:00:00]} g6 {[%emt 0:00:56]} 4. Bg2 {[%emt 0:00:01]} Bg7 {[%emt 0:00:11]} 5. d3 {[%emt 0:00:15]} d6 {[%emt 0:00:39]} 6. Be3 {[%emt 0:01:03]} e5 {[%emt 0:08:34]} 7. Nge2 {[%emt 0:00:47]} Nge7 {[%emt 0:02:30]} 8. O-O {[%emt 0:00:18]} O-O {[%emt 0:01:17]} 9. Qd2 {[%emt 0:01:31]} Nd4 {[%emt 0:04:23]} 10. Nd1 {[%emt 0:02:07]} Bg4 {[%emt 0:08:41]} 11. f3 {[%emt 0:01:47]} Be6 {[%emt 0:00:12]} 12. c3 {[%emt 0:02:46]} Nxe2+ {[%emt 0:00:15]} 13. Qxe2 {[%emt 0:00:06]} Qd7 {[%emt 0:03:29]} 14. Nf2 {[%emt 0:03:29]} f5 {[%emt 0:03:20]} 15. Qd2 {[%emt 0:22:28]} Nc6 {[%emt 0:06:02]} 16. Rfd1 {[%emt 0:13:44]} b6 {[%emt 0:02:11]} 17. b3 {[%emt 0:13:39]} Rad8 {[%emt 0:05:38]} 18. Bg5 {[%emt 0:00:36]} Rde8 {[%emt 0:01:17]} 19. Rac1 {[%emt 0:02:13]} d5 {[%emt 0:10:57]} 20. exd5 {[%emt 0:05:54]} Bxd5 {[%emt 0:00:36]} 21. Re1 {[%emt 0:01:08]} Nd8 {[%emt 0:08:18]} 22. Bh6 {[%emt 0:05:41]} Bxh6 {[%emt 0:00:24]} 23. Qxh6 {[%emt 0:00:06]} Nf7 {[%emt 0:00:41]} 24. Qe3 {[%emt 0:01:56]} Bc6 {[%emt 0:02:54]} 25. f4 {[%emt 0:05:44]} Bxg2 {[%emt 0:01:26]} 26. Kxg2 {[%emt 0:00:03]} Qc6+ {[%emt 0:10:22]} 27. Qf3 {[%emt 0:01:09]} Qxf3+ {[%emt 0:03:50]} 28. Kxf3 {[%emt 0:00:05]} Re7 {[%emt 0:04:27]} 29. Re3 {[%emt 0:01:43]} Rfe8 {[%emt 0:01:55]} 30. Rce1 {[%emt 0:00:15]} g5 {[%emt 0:04:59]} 31. fxg5 {[%emt 0:05:32]} Nxg5+ {[%emt 0:00:10]} 32. Kg2 {[%emt 0:00:07]} Kf8 {[%emt 0:01:24]} 1/2-1/2

[Event "94th Tradewise Hastings Congress"]
[Site "Hastings"]
[Date "2019.01.04"]
[Round "8"]
[White "Gu, In Jung"]
[Black "Kjartansson, Gudmundur"]
[Result "0-1"]
[ECO "B18"]
[WhiteElo "1794"]
[BlackElo "2415"]
[Annotator "NA"]
[PlyCount "80"]
[EventDate "2018.12.28"]
[EventType "swiss"]
[EventCountry "ENG"]
[SourceTitle "playchess.com"]
[Source "ChessBase"]
[SourceQuality "1"]
[TimeControl "40/6000+30:3000+30"]

1. e4 {[%emt 0:00:37]} c6 {[%emt 0:00:00]} 2. d4 {[%emt 0:00:46]} d5 {[%emt 0:00:00]} 3. Nc3 dxe4 {[%emt 0:00:07]} 4. Nxe4 {[%emt 0:09:06]} Bf5 {[%emt 0:00:09]} 5. Ng3 {[%emt 0:00:09]} Bg6 {[%emt 0:00:02]} 6. Nf3 {[%emt 0:00:15]} Nf6 {[%emt 0:01:37]} 7. Ne5 {[%emt 0:02:34]} Nbd7 8. Nd3 {[%emt 0:12:50]} e6 {[%emt 0:02:35]} 9. Be2 Bd6 {[%emt 0:19:36]} 10. Bf3 {[%emt 0:17:26]} e5 11. dxe5 {[%emt 0:21:30]} Nxe5 {[%emt 0:01:08]} 12. Nxe5 {[%emt 0:02:24]} Bxe5 13. Qe2 {[%emt 0:00:35]} O-O {[%emt 0:02:14]} 14. O-O {[%emt 0:00:21]} Re8 {[%emt 0:03:26]} 15. Qc4 {[%emt 0:01:08]} Qc7 {[%emt 0:03:08]} 16. Rb1 {[%emt 0:02:29]} Rad8 {[%emt 0:05:53]} 17. Be3 {[%emt 0:00:13]} Nd5 18. Bc5 {[%emt 0:10:28]} b6 {[%emt 0:03:10]} 19. Ba3 {[%emt 0:00:20]} b5 {[%emt 0:03:57]} 20. Qb3 {[%emt 0:02:35]} a5 {[%emt 0:02:18]} 21. Bc5 {[%emt 0:01:26]} a4 {[%emt 0:01:19]} 22. Qa3 {[%emt 0:00:10]} Bxc2 {[%emt 0:08:13]} 23. Rbc1 {[%emt 0:00:04]} Bg6 {[%emt 0:01:05]} 24. Rfd1 {[%emt 0:00:32]} Bf4 {[%emt 0:03:20]} 25. Ra1 {[%emt 0:00:05]} Bc2 {[%emt 0:01:26]} 26. Rd4 {[%emt 0:01:17]} Re3 {[%emt 0:20:19]} 27. fxe3 {[%emt 0:00:49]} Bxe3+ {[%emt 0:00:07]} 28. Kh1 {[%emt 0:00:27]} Bxd4 29. Rc1 {[%emt 0:03:03]} b4 {[%emt 0:10:10]} 30. Bxb4 {[%emt 0:00:04]} Qe5 {[%emt 0:04:38]} 31. Rxc2 {[%emt 0:03:10]} Nxb4 {[%emt 0:00:21]} 32. Qxb4 {[%emt 0:00:22]} Qe3 {[%emt 0:00:13]} 33. Ne2 {[%emt 0:09:51]} Bc3 {[%emt 0:00:06]} 34. Rd2 {[%emt 0:00:29]} Bxd2 {[%emt 0:03:08]} 35. Qxa4 {[%emt 0:00:09]} Ba5 {[%emt 0:02:50]} 36. h3 {[%emt 0:01:17]} Bc7 {[%emt 0:00:20]} 37. Qb3 {[%emt 0:06:18]} Qxb3 {[%emt 0:00:28]} 38. axb3 {[%emt 0:00:04]} Rd1+ {[%emt 0:00:04]} 39. Ng1 {[%emt 0:00:05]} Rc1 {[%emt 0:00:08]} 40. g4 {[%emt 0:00:08]} Bb6 {[%emt 0:00:01]} 0-1

[Event "94th Tradewise Hastings Congress"]
[Site "Hastings"]
[Date "2019.01.05"]
[Round "9"]
[White "Hawkins, Jonathan"]
[Black "Lalic, Bogdan"]
[Result "1/2-1/2"]
[ECO "D96"]
[WhiteElo "2583"]
[BlackElo "2420"]
[Annotator "ChessBase"]
[PlyCount "59"]
[EventDate "2018.12.28"]
[EventType "swiss"]
[EventCountry "ENG"]
[SourceTitle "playchess.com"]
[Source "ChessBase"]
[SourceQuality "1"]
[TimeControl "40/6000+30:3000+30"]

1. d4 {[%emt 0:00:00]} Nf6 {[%emt 0:06:21]} 2. c4 {[%emt 0:00:00]} g6 {[%emt 0:00:30]} 3. Nc3 {[%emt 0:00:32]} d5 {[%emt 0:00:10]} 4. Nf3 {[%emt 0:00:08]} Bg7 {[%emt 0:00:09]} 5. Qb3 {[%emt 0:01:35]} dxc4 {[%emt 0:00:10]} 6. Qxc4 {[%emt 0:00:04]} Be6 {[%emt 0:00:09]} 7. Qb5+ {[%emt 0:06:04]} Bd7 {[%emt 0:00:11]} 8. Qb3 {[%emt 0:01:33]} c5 {[%emt 0:00:38]} 9. dxc5 {[%emt 0:12:55]} Na6 {[%emt 0:00:16]} 10. Ne5 {[%emt 0:00:58]} O-O {[%emt 0:00:27]} 11. Qa3 {[%emt 0:07:50]} Qc7 {[%emt 0:10:52]} 12. Nxd7 {[%emt 0:05:03]} Qxd7 {[%emt 0:00:14]} 13. e4 {[%emt 0:01:56]} Qc6 {[%emt 0:00:26]} 14. Bxa6 {[%emt 0:01:35]} bxa6 {[%emt 0:00:06]} 15. f3 {[%emt 0:01:58]} Nd7 {[%emt 0:04:44]} 16. Be3 {[%emt 0:13:03]} Ne5 {[%emt 0:00:14]} 17. Kf2 {[%emt 0:03:13]} Rab8 {[%emt 0:08:00]} 18. Nd5 {[%emt 0:09:31]} Kh8 {[%emt 0:03:39]} 19. Nxe7 {[%emt 0:09:52]} Qe6 {[%emt 0:03:11]} 20. Nd5 {[%emt 0:00:06]} Rxb2+ {[%emt 0:05:59]} 21. Kg3 {[%emt 0:00:05]} Nc4 {[%emt 0:01:35]} 22. Qd3 {[%emt 0:01:01]} Nxe3 {[%emt 0:00:07]} 23. Nxe3 {[%emt 0:00:06]} f5 {[%emt 0:00:08]} 24. f4 {[%emt 0:01:31]} fxe4 {[%emt 0:00:18]} 25. Qd6 {[%emt 0:01:00]} Qf7 {[%emt 0:03:01]} 26. Rhf1 {[%emt 0:02:38]} Re2 {[%emt 0:01:35]} 27. Rae1 {[%emt 0:01:33]} Qxa2 {[%emt 0:00:26]} 28. c6 {[%emt 0:01:48]} Rd2 {[%emt 0:00:31]} 29. Qb4 {[%emt 0:02:00]} Rd4 30. Qc5 1/2-1/2

[Event "94th Tradewise Hastings Congress"]
[Site "Hastings"]
[Date "2019.01.05"]
[Round "9"]
[White "Sulskis, Sarunas"]
[Black "Gormally, Daniel W"]
[Result "1/2-1/2"]
[ECO "C42"]
[WhiteElo "2525"]
[BlackElo "2478"]
[Annotator "ChessBase"]
[PlyCount "91"]
[EventDate "2018.12.28"]
[EventType "swiss"]
[EventCountry "ENG"]
[SourceTitle "playchess.com"]
[Source "ChessBase"]
[SourceQuality "1"]
[TimeControl "40/6000+30:3000+30"]

1. e4 {[%emt 0:00:00]} e5 {[%emt 0:00:00]} 2. Nf3 {[%emt 0:00:00]} Nf6 {[%emt 0:00:00]} 3. Nxe5 {[%emt 0:00:14]} d6 {[%emt 0:00:01]} 4. Nf3 {[%emt 0:00:12]} Nxe4 {[%emt 0:00:17]} 5. d4 {[%emt 0:00:39]} d5 {[%emt 0:00:29]} 6. Bd3 {[%emt 0:00:09]} Bf5 {[%emt 0:00:48]} 7. O-O {[%emt 0:00:50]} Be7 {[%emt 0:00:15]} 8. Re1 {[%emt 0:23:07]} Nc6 {[%emt 0:00:06]} 9. Bb5 {[%emt 0:05:56]} O-O {[%emt 0:07:26]} 10. Nbd2 {[%emt 0:07:37]} Bd6 {[%emt 0:12:55]} 11. c3 {[%emt 0:12:04]} Nxd2 {[%emt 0:06:21]} 12. Bxd2 {[%emt 0:01:06]} Ne7 {[%emt 0:01:06]} 13. Nh4 {[%emt 0:03:41]} Be4 {[%emt 0:03:27]} 14. f3 {[%emt 0:02:37]} Bg6 {[%emt 0:02:29]} 15. g3 {[%emt 0:02:27]} c6 {[%emt 0:04:10]} 16. Bf1 {[%emt 0:01:35]} Nf5 {[%emt 0:01:56]} 17. Nxg6 {[%emt 0:05:06]} hxg6 {[%emt 0:04:00]} 18. Bh3 {[%emt 0:00:12]} Qc7 {[%emt 0:03:04]} 19. Qe2 {[%emt 0:00:44]} c5 {[%emt 0:01:42]} 20. dxc5 {[%emt 0:02:12]} Qxc5+ {[%emt 0:04:31]} 21. Qf2 {[%emt 0:02:36]} d4 {[%emt 0:04:08]} 22. cxd4 {[%emt 0:05:12]} Qxd4 {[%emt 0:01:30]} 23. Bxf5 {[%emt 0:03:49]} Qxf2+ {[%emt 0:00:13]} 24. Kxf2 {[%emt 0:00:07]} gxf5 {[%emt 0:00:05]} 25. Rad1 {[%emt 0:03:02]} Rfd8 {[%emt 0:06:06]} 26. Be3 {[%emt 0:02:13]} b6 {[%emt 0:04:21]} 27. f4 {[%emt 0:02:25]} Be7 {[%emt 0:03:59]} 28. Kf3 {[%emt 0:03:09]} Bf6 {[%emt 0:00:17]} 29. b3 {[%emt 0:00:41]} Rac8 {[%emt 0:01:24]} 30. h3 {[%emt 0:00:42]} Rxd1 {[%emt 0:04:13]} 31. Rxd1 {[%emt 0:00:19]} Rc2 {[%emt 0:00:18]} 32. Rd2 {[%emt 0:01:46]} Rxd2 {[%emt 0:01:00]} 33. Bxd2 {[%emt 0:00:06]} Kf8 {[%emt 0:00:31]} 34. g4 {[%emt 0:00:25]} fxg4+ {[%emt 0:01:47]} 35. hxg4 {[%emt 0:00:09]} Ke7 {[%emt 0:01:06]} 36. Ke4 {[%emt 0:02:57]} Kd6 {[%emt 0:01:34]} 37. f5 {[%emt 0:01:51]} g5 {[%emt 0:02:14]} 38. Be3 {[%emt 0:09:43]} Kc6 {[%emt 0:01:42]} 39. a4 {[%emt 0:03:01]} a6 {[%emt 0:00:18]} 40. Bf2 {[%emt 0:01:14]} Bb2 {[%emt 0:02:52]} 41. Kd3 {[%emt 0:52:48]} b5 {[%emt 0:52:32]} 42. axb5+ {[%emt 0:00:00]} axb5 {[%emt 0:00:00]} 43. Ke4 {[%emt 0:00:00]} f6 {[%emt 0:00:00]} 44. Be3 {[%emt 0:00:00]} Kd6 {[%emt 0:00:00]} 45. Ba7 {[%emt 0:00:00]} Kc6 {[%emt 0:00:00]} 46. Bg1 {Kd5+ Kd4+} 1/2-1/2

[Event "94th Tradewise Hastings Congress"]
[Site "Hastings"]
[Date "2019.01.05"]
[Round "9"]
[White "Cherniaev, Alexander"]
[Black "Korneev, Oleg"]
[Result "1/2-1/2"]
[ECO "C48"]
[WhiteElo "2393"]
[BlackElo "2550"]
[Annotator "ChessBase"]
[PlyCount "25"]
[EventDate "2018.12.28"]
[EventType "swiss"]
[EventCountry "ENG"]
[SourceTitle "playchess.com"]
[Source "ChessBase"]
[SourceQuality "1"]
[TimeControl "40/6000+30:3000+30"]

1. e4 {[%emt 0:02:59]} e5 {[%emt 0:06:13]} 2. Nf3 {[%emt 0:00:56]} Nc6 {[%emt 0:00:11]} 3. Nc3 {[%emt 0:00:13]} Nf6 {[%emt 0:00:08]} 4. Bb5 {[%emt 0:00:12]} Nd4 {[%emt 0:02:23]} 5. Nxd4 {[%emt 0:02:59]} exd4 {[%emt 0:00:02]} 6. e5 {[%emt 0:00:24]} dxc3 {[%emt 0:00:05]} 7. exf6 {[%emt 0:00:07]} Qxf6 {[%emt 0:00:03]} 8. dxc3 {[%emt 0:00:42]} Bc5 {[%emt 0:00:28]} 9. Qe2+ {[%emt 0:00:28]} Qe6 {[%emt 0:00:53]} 10. O-O {[%emt 0:01:20]} Qxe2 {[%emt 0:01:33]} 11. Bxe2 {[%emt 0:00:11]} d6 {[%emt 0:00:45]} 12. Bf4 {[%emt 0:00:19]} O-O {[%emt 0:00:35]} 13. Bd3 {[%emt 0:00:30]} 1/2-1/2

[Event "94th Tradewise Hastings Congress"]
[Site "Hastings"]
[Date "2019.01.05"]
[Round "9"]
[White "Bates, Richard A"]
[Black "Lyell, Mark"]
[Result "1/2-1/2"]
[ECO "A04"]
[WhiteElo "2372"]
[BlackElo "2317"]
[Annotator "NA"]
[PlyCount "48"]
[EventDate "2018.12.28"]
[EventType "swiss"]
[EventCountry "ENG"]
[SourceTitle "playchess.com"]
[Source "ChessBase"]
[SourceQuality "1"]
[TimeControl "40/6000+30:3000+30"]

1. Nf3 {[%emt 0:00:00]} f5 {[%emt 0:00:11]} 2. g3 {[%emt 0:00:12]} Nf6 {[%emt 0:00:19]} 3. Bg2 {[%emt 0:00:07]} g6 {[%emt 0:00:14]} 4. d4 {[%emt 0:00:20]} Bg7 {[%emt 0:00:06]} 5. O-O {[%emt 0:00:10]} O-O {[%emt 0:00:08]} 6. c4 {[%emt 0:00:33]} d6 {[%emt 0:00:08]} 7. Nc3 {[%emt 0:00:55]} Qe8 {[%emt 0:00:07]} 8. b3 {[%emt 0:01:53]} Na6 {[%emt 0:00:17]} 9. Ba3 {[%emt 0:01:13]} c6 {[%emt 0:00:22]} 10. Qd3 {[%emt 0:03:44]} Nc7 {[%emt 0:03:55]} 11. e4 {[%emt 0:07:01]} fxe4 {[%emt 0:01:21]} 12. Nxe4 {[%emt 0:00:07]} Bf5 {[%emt 0:00:06]} 13. Nxf6+ {[%emt 0:00:22]} Bxf6 {[%emt 0:00:13]} 14. Qd2 {[%emt 0:13:32]} Qd7 {[%emt 0:02:35]} 15. Rfe1 {[%emt 0:10:36]} Bh3 {[%emt 0:06:38]} 16. Qh6 {[%emt 0:25:38]} Bxg2 {[%emt 0:02:16]} 17. Kxg2 Qf5 {[%emt 0:12:14]} 18. Qh3 {[%emt 0:07:16]} Qc2 {[%emt 0:09:31]} 19. Qg4 {[%emt 0:01:47]} a5 {[%emt 0:13:37]} 20. Re4 {[%emt 0:11:50]} a4 {[%emt 0:05:07]} 21. Ne1 {[%emt 0:01:30]} Qd2 {[%emt 0:01:44]} 22. Nf3 {[%emt 0:03:34]} Qc2 {[%emt 0:02:56]} 23. Ne1 {[%emt 0:00:09]} Qd2 {[%emt 0:05:51]} 24. Nf3 {[%emt 0:00:29]} Qc2 1/2-1/2

[Event "94th Tradewise Hastings Congress"]
[Site "Hastings"]
[Date "2019.01.05"]
[Round "9"]
[White "Djuric, Stefan"]
[Black "Payne, Matthew J"]
[Result "1-0"]
[ECO "C10"]
[WhiteElo "2371"]
[BlackElo "2182"]
[Annotator "NA"]
[PlyCount "59"]
[EventDate "2018.12.28"]
[EventType "swiss"]
[EventCountry "ENG"]
[SourceTitle "playchess.com"]
[Source "ChessBase"]
[SourceQuality "1"]
[TimeControl "40/6000+30:3000+30"]

1. e4 {[%emt 0:00:00]} e6 {[%emt 0:00:00]} 2. d4 {[%emt 0:00:00]} d5 {[%emt 0:00:00]} 3. Nc3 {[%emt 0:00:33]} Nc6 {[%emt 0:00:34]} 4. Nf3 {[%emt 0:00:59]} Nf6 {[%emt 0:00:12]} 5. e5 {[%emt 0:22:04]} Ne4 {[%emt 0:00:11]} 6. a3 {[%emt 0:02:56]} f5 {[%emt 0:06:36]} 7. exf6 {[%emt 0:18:05]} Qxf6 {[%emt 0:01:31]} 8. Bd3 {[%emt 0:04:47]} Nxc3 {[%emt 0:04:37]} 9. bxc3 {[%emt 0:00:02]} h6 {[%emt 0:00:18]} 10. O-O {[%emt 0:09:58]} Bd6 {[%emt 0:04:43]} 11. Re1 {[%emt 0:01:02]} O-O {[%emt 0:05:53]} 12. Qe2 {[%emt 0:01:49]} g5 {[%emt 0:02:17]} 13. Ne5 {[%emt 0:11:44]} Bxe5 {[%emt 0:01:31]} 14. dxe5 {[%emt 0:00:05]} Qg7 {[%emt 0:00:03]} 15. h4 {[%emt 0:00:56]} Nd8 {[%emt 0:17:50]} 16. hxg5 {[%emt 0:07:20]} hxg5 {[%emt 0:00:56]} 17. Qh5 {[%emt 0:00:17]} Nf7 {[%emt 0:00:16]} 18. Rb1 {[%emt 0:01:16]} c5 {[%emt 0:01:14]} 19. c4 {[%emt 0:01:19]} dxc4 {[%emt 0:01:33]} 20. Bxc4 {[%emt 0:03:29]} Qh7 {[%emt 0:07:17]} 21. Qe2 {[%emt 0:00:14]} Kg7 {[%emt 0:00:57]} 22. Rb3 {[%emt 0:00:29]} Rh8 {[%emt 0:02:00]} 23. Rh3 {[%emt 0:00:10]} Qg8 {[%emt 0:00:06]} 24. Rxh8 {[%emt 0:05:19]} Kxh8 {[%emt 0:00:49]} 25. Bd3 {[%emt 0:02:18]} Bd7 {[%emt 0:08:51]} 26. Qh5+ {[%emt 0:00:37]} Kg7 {[%emt 0:00:04]} 27. Bxg5 {[%emt 0:01:49]} Nxg5 {[%emt 0:00:14]} 28. Qxg5+ {[%emt 0:00:01]} Kf8 {[%emt 0:00:07]} 29. Qe3 {[%emt 0:00:07]} b6 {[%emt 0:01:28]} 30. Qf3+ {[%emt 0:00:10]} 1-0

[Event "94th Tradewise Hastings Congress"]
[Site "Hastings"]
[Date "2019.01.05"]
[Round "9"]
[White "Taylor, Adam C"]
[Black "Rice, Chris B"]
[Result "1-0"]
[ECO "E62"]
[WhiteElo "2331"]
[BlackElo "1963"]
[Annotator "NA"]
[PlyCount "107"]
[EventDate "2018.12.28"]
[EventType "swiss"]
[EventCountry "ENG"]
[SourceTitle "playchess.com"]
[Source "ChessBase"]
[SourceQuality "1"]
[TimeControl "40/6000+30:3000+30"]

1. g3 {[%emt 0:05:30]} Nf6 {[%emt 0:00:23]} 2. Nf3 {[%emt 0:00:19]} g6 {[%emt 0:00:08]} 3. c4 {[%emt 0:00:06]} Bg7 {[%emt 0:00:49]} 4. Nc3 {[%emt 0:00:17]} O-O {[%emt 0:00:29]} 5. Bg2 {[%emt 0:00:40]} d6 {[%emt 0:00:58]} 6. d4 {[%emt 0:00:24]} Nc6 {[%emt 0:01:54]} 7. d5 {[%emt 0:05:27]} Na5 {[%emt 0:02:25]} 8. Nd2 {[%emt 0:00:07]} c5 {[%emt 0:01:15]} 9. a3 {[%emt 0:02:42]} Nd7 {[%emt 0:05:21]} 10. Qc2 {[%emt 0:04:29]} Ne5 {[%emt 0:12:54]} 11. b3 {[%emt 0:00:06]} a6 {[%emt 0:02:48]} 12. Rb1 {[%emt 0:00:51]} Qc7 {[%emt 0:11:39]} 13. f4 {[%emt 0:05:22]} Ng4 {[%emt 0:01:23]} 14. Qd3 {[%emt 0:02:43]} Bd4 {[%emt 0:08:26]} 15. Nd1 {[%emt 0:00:51]} b5 {[%emt 0:00:51]} 16. Bb2 {[%emt 0:13:31]} Bxb2 {[%emt 0:05:26]} 17. Nxb2 {[%emt 0:03:03]} Bd7 {[%emt 0:02:25]} 18. O-O {[%emt 0:01:34]} Rab8 {[%emt 0:08:12]} 19. h3 {[%emt 0:01:16]} Nf6 {[%emt 0:01:24]} 20. Qc3 {[%emt 0:04:10]} b4 {[%emt 0:11:12]} 21. axb4 {[%emt 0:00:37]} cxb4 {[%emt 0:00:09]} 22. Qd4 {[%emt 0:02:15]} Nb7 {[%emt 0:01:29]} 23. Nd3 {[%emt 0:03:10]} a5 {[%emt 0:01:19]} 24. e4 {[%emt 0:00:32]} Nc5 {[%emt 0:03:55]} 25. Nxc5 {[%emt 0:11:23]} dxc5 {[%emt 0:00:58]} 26. Qe3 {[%emt 0:00:54]} a4 {[%emt 0:01:03]} 27. e5 {[%emt 0:00:59]} Nh5 {[%emt 0:01:50]} 28. g4 {[%emt 0:00:06]} Ng7 {[%emt 0:00:05]} 29. bxa4 {[%emt 0:11:34]} Bxa4 {[%emt 0:01:24]} 30. Ra1 {[%emt 0:00:06]} Bc2 {[%emt 0:00:46]} 31. Nb3 {[%emt 0:00:53]} Bxb3 {[%emt 0:03:49]} 32. Qxb3 {[%emt 0:00:10]} f6 {[%emt 0:01:06]} 33. Qe3 {[%emt 0:01:50]} Qb6 {[%emt 0:06:50]} 34. d6 {[%emt 0:03:54]} exd6 {[%emt 0:05:37]} 35. Bd5+ {[%emt 0:00:05]} Kh8 {[%emt 0:00:16]} 36. exf6 {[%emt 0:00:04]} Rxf6 {[%emt 0:01:26]} 37. f5 {[%emt 0:05:31]} gxf5 {[%emt 0:04:02]} 38. g5 {[%emt 0:00:01]} Rg6 {[%emt 0:00:24]} 39. Bf7 {[%emt 0:00:36]} Rf8 {[%emt 0:00:36]} 40. h4 {[%emt 0:02:36]} Qd8 {[%emt 0:00:07]} 41. Ra7 {[%emt 0:50:56]} Rxf7 {[%emt 0:05:35]} 42. Rxf7 {[%emt 0:00:00]} h6 {[%emt 0:00:09]} 43. Ra1 {[%emt 0:00:00]} hxg5 {[%emt 0:01:13]} 44. h5 {[%emt 0:00:00]} Re6 {[%emt 0:06:29]} 45. Qf3 {[%emt 0:00:00]} g4 {[%emt 0:00:45]} 46. Ra8 {[%emt 0:00:00]} Re1+ {[%emt 0:00:06]} 47. Kf2 {[%emt 0:00:00]} Re2+ {[%emt 0:00:07]} 48. Kf1 {[%emt 0:00:00]} gxf3 {[%emt 0:01:44]} 49. Rxd8+ {[%emt 0:00:00]} Kh7 {[%emt 0:01:29]} 50. Rdd7 {[%emt 0:00:00]} Rg2 {[%emt 0:00:25]} 51. Rxd6 {[%emt 0:00:00]} Kg8 {[%emt 0:01:01]} 52. Rb7 {[%emt 0:00:00]} b3 {[%emt 0:02:16]} 53. h6 {[%emt 0:00:00]} b2 {[%emt 0:01:30]} 54. hxg7 {[%emt 0:00:00]} 1-0

[Event "94th Tradewise Hastings Congress"]
[Site "Hastings"]
[Date "2019.01.05"]
[Round "9"]
[White "Peek, Marcel"]
[Black "Snape, Ian L"]
[Result "1/2-1/2"]
[ECO "A43"]
[WhiteElo "2293"]
[BlackElo "2112"]
[Annotator "NA"]
[PlyCount "66"]
[EventDate "2018.12.28"]
[EventType "swiss"]
[EventCountry "ENG"]
[SourceTitle "playchess.com"]
[Source "ChessBase"]
[SourceQuality "1"]
[TimeControl "40/6000+30:3000+30"]

1. d4 {[%emt 0:00:00]} c5 {[%emt 0:00:00]} 2. d5 {[%emt 0:00:00]} g6 {[%emt 0:00:00]} 3. e4 {[%emt 0:00:01]} d6 {[%emt 0:00:00]} 4. c4 {[%emt 0:00:31]} Nf6 {[%emt 0:00:10]} 5. Nc3 {[%emt 0:00:07]} Bg7 {[%emt 0:00:04]} 6. Nf3 {[%emt 0:00:24]} O-O {[%emt 0:00:19]} 7. Be2 {[%emt 0:01:58]} e6 {[%emt 0:00:17]} 8. h3 {[%emt 0:00:51]} exd5 {[%emt 0:00:08]} 9. exd5 {[%emt 0:00:09]} a6 {[%emt 0:00:25]} 10. a4 {[%emt 0:04:03]} Nbd7 {[%emt 0:00:11]} 11. O-O {[%emt 0:01:16]} h6 {[%emt 0:00:59]} 12. Ne1 {[%emt 0:18:40]} Re8 {[%emt 0:07:07]} 13. Bf4 {[%emt 0:13:47]} Nf8 {[%emt 0:06:38]} 14. Bh2 {[%emt 0:06:18]} Ne4 {[%emt 0:07:50]} 15. Nxe4 {[%emt 0:01:15]} Rxe4 {[%emt 0:00:06]} 16. Bd3 {[%emt 0:00:09]} Re8 {[%emt 0:01:59]} 17. Rb1 {[%emt 0:02:52]} f5 {[%emt 0:05:32]} 18. Qc2 {[%emt 0:03:24]} Qf6 {[%emt 0:03:31]} 19. f4 {[%emt 0:00:22]} a5 {[%emt 0:09:15]} 20. Nf3 {[%emt 0:02:59]} Bd7 {[%emt 0:07:57]} 21. Bg3 {[%emt 0:01:51]} Nh7 {[%emt 0:05:31]} 22. Be1 {[%emt 0:03:40]} Qd8 {[%emt 0:02:57]} 23. b3 {[%emt 0:06:20]} Qf6 {[%emt 0:03:02]} 24. Kh1 {[%emt 0:04:13]} b6 {[%emt 0:00:34]} 25. Bd2 {[%emt 0:04:18]} Re7 {[%emt 0:02:00]} 26. Rbe1 {[%emt 0:05:02]} Rae8 {[%emt 0:00:30]} 27. Qd1 {[%emt 0:01:30]} Qf7 {[%emt 0:02:35]} 28. Rxe7 {[%emt 0:03:19]} Rxe7 {[%emt 0:00:11]} 29. Re1 {[%emt 0:00:24]} Nf6 {[%emt 0:00:52]} 30. Rxe7 {[%emt 0:00:31]} Qxe7 {[%emt 0:00:06]} 31. Qe1 {[%emt 0:00:12]} Ne4 {[%emt 0:01:09]} 32. Kh2 {[%emt 0:01:31]} Bf6 {[%emt 0:01:42]} 33. g3 {[%emt 0:01:32]} Kf7 {[%emt 0:05:03]} 1/2-1/2